Cogmind - Beta 9.6 @@@ ROGUE MODE // 2020.05.18 @ 19:18:17 Player: TheGreatBorealis Result: Destroyed by S-27 Virus with Autogun Performance ------------- Evolutions (3) 1500 Regions Visited (5) 1000 Robots Destroyed (16) 80 Value Destroyed (688) 688 Prototype IDs (0) 0 Alien Tech Used (0) 0 Bonus (0) 0 TOTAL SCORE: 3268 Bonus ------- None Cogmind --------- Core Integrity 0/700 Matter 299/300 Energy 100/100 System Corruption 4% Temperature Cool (0) Movement Core (50) Location -7/Factory Parts ------- > --- POWER (2) -------- (None) > --- PROPULSION (4) --- (None) > --- UTILITY (4) ------ (None) > --- WEAPON (3) ------- (None) > --- INVENTORY (4) ---- Heat Sink System Shield Peak State ------------ > --- POWER ------------ Ion Engine Nuclear Core > --- PROPULSION ------- Aluminum Leg Aluminum Leg Aluminum Leg Aluminum Leg > --- UTILITY ---------- Improved Heat Sink Small Storage Unit Signal Interpreter Hacking Suite > --- WEAPON ----------- Lightning Gun Particle Gun Particle Cannon > --- INVENTORY -------- Light Nuclear Core Advanced Treads Heat Sink System Shield Particle Gun [Rating: 25] Favorites ----------- Power Ion Engine Engine Ion Engine Power Core Nuclear Core Propulsion Aluminum Leg Treads Advanced Treads Leg Aluminum Leg Utility Small Storage Unit Device Improved Heat Sink Storage Small Storage Unit Processor Signal Interpreter Hackware Hacking Suite Weapon Particle Cannon Energy Gun EM Pulse Gun Energy Cannon Particle Cannon Special Weapon Mining Laser Build | -11 -10 -10 -9 -8 -7 ------- Run | Scr Mat Min Mat Mat Fac Slots Evolved 6 | . . . 2 2 2 Power 1 | . . . . . 1 Propulsion 2 | . . . 2 . . Utility 2 | . . . . 1 1 Weapon 1 | . . . . 1 . Parts Attached 34 | 6 4 5 4 5 10 Power 4 | 1 . 1 . . 2 Engine 2 | 1 . 1 . . . Core 2 | . . . . . 2 Reactor . | . . . . . . Propulsion 13 | 2 3 1 2 2 3 Treads 3 | . . . . . 3 Leg 10 | 2 3 1 2 2 . Wheel . | . . . . . . Hover . | . . . . . . Flight . | . . . . . . Utility 7 | 1 1 1 . 2 2 Device 3 | . 1 . . 2 . Storage 1 | 1 . . . . . Processor 2 | . . 1 . . 1 Hackware 1 | . . . . . 1 Protection . | . . . . . . Artifact . | . . . . . . Weapon 10 | 2 . 2 2 1 3 Energy Gun 7 | 2 . 1 . 1 3 Energy Cannon 2 | . . . 2 . . Ballistic Gun . | . . . . . . Ballistic Cannon . | . . . . . . Launcher . | . . . . . . Special Weapon 1 | . . 1 . . . Impact Weapon . | . . . . . . Slashing Weapon . | . . . . . . Piercing Weapon . | . . . . . . Special Melee Weapon . | . . . . . . Unidentified Prototypes . | . . . . . . Parts Lost 18 | . . 6 . 2 10 Power 3 | . . 1 . . 2 Propulsion 7 | . . 1 . 2 4 Utility 1 | . . 1 . . . Weapon 7 | . . 3 . . 4 Highest Loss Streak 9 | . . 3 . 2 9 Average Slot Usage (%) 83 | . 98 83 82 88 75 Engine 9 | . 14 12 11 9 5 Leg 27 | . 28 28 35 34 22 Device 5 | . 12 2 . 7 5 Storage 10 | . 14 14 11 9 5 Processor 6 | . . 10 11 9 6 Hackware 2 | . . . . . 5 Energy Gun 12 | . 28 11 . 1 11 Energy Cannon 5 | . . . 13 18 5 Naked Turns 173 | . . . . . 173 Heaviest Build 28 | 13 14 14 17 21 28 Greatest Support 62 | 20 20 20 40 40 62 Greatest Overweight (x) . | . . . . . . Average Overweight (x) . | . . . . . . Largest Inventory Capacity 6 | 6 6 6 6 6 6 Average Capacity 5 | 5 6 6 6 6 5 Most Carried 6 | . 6 6 3 5 6 Average Carried 4 | . 4 5 2 2 4 Final Capacity 6 | 6 6 6 6 6 4 Final Carried 6 | . 6 3 2 5 2 Class Distribution -------------------- 66% | Mutant 29% | Scavenger-Gunner 4% | Scavenger-Mutant Dominant Class ---------------- Mutant | -10/Materials Mutant | -10/Mines Mutant | -9/Materials Scavenger-Mutant | -8/Materials Scavenger-Gunner | -7/Factory Resources | -11 -10 -10 -9 -8 -7 ----------- Run | Scr Mat Min Mat Mat Fac Matter Collected 485 | 108 164 48 . 105 60 Remotely . | . . . . . . Salvage Created 795 | . 304 . 104 231 156 Parts 30 | . 13 . 6 10 1 Haulers Intercepted . | . . . . . . Recyclers Shooed . | . . . . . . Parts Field Recycled . | . . . . . . Retrieved Matter . | . . . . . . Parts Self-Destructed . | . . . . . . Prevented . | . . . . . . Kills | -11 -10 -10 -9 -8 -7 ------- Run | Scr Mat Min Mat Mat Fac Combat Hostiles Destroyed 16 | . 6 . 2 5 3 Guns 7 | . 4 . . . 3 Cannons 7 | . . . 2 5 . AOE 2 | . 2 . . . . Classes Destroyed 3 | . 1 . 1 . 1 Grunt 14 | . 6 . 1 5 2 Duelist 1 | . . . . . 1 Sentry 1 | . . . 1 . . Best Kill Streak 4 | . 2 . 1 4 3 Combat Bots Only 4 | . 2 . 1 4 3 Max Kills in Single Turn 1 | . 1 . 1 1 1 Gunslinging . | . . . . . . Exploded 1 | . 1 . . . . Melee . | . . . . . . Uniques/NPCs Destroyed . | . . . . . . Combat | -11 -10 -10 -9 -8 -7 -------- Run | Scr Mat Min Mat Mat Fac Damage Taken 2433 | . 256 501 88 267 1321 Core 944 | . 59 132 . 49 704 Absorbed by Shields . | . . . . . . Core Remaining (%) 78 | 100 . 23 100 91 . Volleys Fired 69 | . 14 9 3 16 27 Largest 3 | . 2 2 2 3 3 Hottest 201 | . 80 140 136 201 188 Shots Fired 111 | . 28 11 6 33 33 Gun 70 | . 28 9 . 1 32 Cannon 39 | . . . 6 32 1 Launcher . | . . . . . . Special 2 | . . 2 . . . Kinetic . | . . . . . . Thermal 68 | . . 2 6 33 27 Explosive . | . . . . . . Electromagnetic 43 | . 28 9 . . 6 Robot Hit Streak 13 | . 6 6 4 10 13 Robot Miss Streak 3 | . 3 1 1 2 2 Penetration Max . | . . . . . . Secondary Targets . | . . . . . . Shots Hit Robots 80 | . 18 6 3 23 30 Core Hits 38 | . 12 2 2 10 12 Critical Hits . | . . . . . . Critical Kills . | . . . . . . Critical Parts Destroyed . | . . . . . . Melee Attacks . | . . . . . . Impact . | . . . . . . Slashing . | . . . . . . Piercing . | . . . . . . Sneak Attacks . | . . . . . . Combat Hostiles . | . . . . . . Follow-up Attacks . | . . . . . . Damage Inflicted 1438 | . 336 87 81 468 466 Guns 783 | . 271 80 . 17 415 Cannons 553 | . . . 81 451 21 Explosions 65 | . 65 . . . . Melee . | . . . . . . Ramming 37 | . . 7 . . 30 Kinetic . | . . . . . . Thermal 968 | . 65 . 81 468 354 Explosive . | . . . . . . Electromagnetic 433 | . 271 80 . . 82 Impact . | . . . . . . Slashing . | . . . . . . Piercing . | . . . . . . Highest Corruption 7 | . . 7 . . 4 Average Corruption 6 | . . 7 . . 3 Corruption Purged . | . . . . . . Effects 18 | . . 16 . . 2 Message Errors 4 | . . 2 . . 2 Matter Fused 6 | . . 6 . . . Heat Flow Errors 3 | . . 3 . . . Energy Discharges 3 | . . 3 . . . Data Loss (minor) 1 | . . 1 . . . Data Loss (major) 1 | . . 1 . . . Overload Shots . | . . . . . . Overflow Damage 18 | . . . . 18 . Projectiles 18 | . . . . 18 . Explosions . | . . . . . . Melee . | . . . . . . Knockbacks 1 | . . . . . 1 Impact 1 | . . . . . 1 Kinetic . | . . . . . . Secondary . | . . . . . . Self-Inflicted Damage 53 | . 40 . . . 13 Shots 1 | . 1 . . . . Rammed 8 | . . 1 . . 7 Targets Rammed 14 | . . 7 . . 7 Kicked 6 | . . 6 . . . Crushed . | . . . . . . Highest Temperature 273 | . 138 273 138 188 126 Average Temperature 70 | . 61 75 60 90 53 Received Heat Transfer 588 | . 120 102 42 153 171 Siege Activations . | . . . . . . Robots Corrupted . | . . . . . . Combat Hostiles . | . . . . . . Parts Fried . | . . . . . . Impact Corruptions . | . . . . . . Robots Melted . | . . . . . . Combat Hostiles . | . . . . . . Parts Melted 2 | . . . . . 2 Heat Transferred 1987 | . 100 . 148 851 888 Parts Sabotaged . | . . . . . . Parts Stolen . | . . . . . . Parts Stripped . | . . . . . . Power Chain Reactions 2 | . 2 . . . . Missiles Intercepted . | . . . . . . Alert | -11 -10 -10 -9 -8 -7 ------- Run | Scr Mat Min Mat Mat Fac Peak Influence 170 | . 170 11 99 166 86 Average Influence 36 | . 63 2 21 90 35 Maximum Alert Level . | . . . . . . Low Security (%) 100 | 100 100 100 100 100 100 Level 1 . | . . . . . . Level 2 . | . . . . . . Level 3 . | . . . . . . Level 4 . | . . . . . . Level 5 . | . . . . . . High Security . | . . . . . . Max Security . | . . . . . . Squads Dispatched 10 | . 1 . 3 3 3 Investigation 4 | . 1 . . 2 1 Extermination 2 | . . . . . 2 Reinforcement 4 | . . . 3 1 . Assault . | . . . . . . Garrison . | . . . . . . Intercept . | . . . . . . Construction Impeded . | . . . . . . Haulers Reinforced . | . . . . . . Stealth | -11 -10 -10 -9 -8 -7 --------- Run | Scr Mat Min Mat Mat Fac Distress Signals 5 | . 1 . 2 . 2 Communications Jammed . | . . . . . . Distress Signals . | . . . . . . Times Spotted 54 | . 16 6 10 7 15 Peak Tracking Total 8 | . 5 3 4 4 8 Tactical Retreats 6 | . 1 1 1 . 3 Traps | -11 -10 -10 -9 -8 -7 ------- Run | Scr Mat Min Mat Mat Fac Traps Triggered 6 | . 1 . . 2 3 Indirectly . | . . . . . . Trap Hack Attempts . | . . . . . . Triggered . | . . . . . . Disarmed . | . . . . . . Reprogrammed . | . . . . . . Reused . | . . . . . . Traps Extracted . | . . . . . . Installed . | . . . . . . Triggered . | . . . . . . Machines | -11 -10 -10 -9 -8 -7 ---------- Run | Scr Mat Min Mat Mat Fac Machines Disabled . | . . . . . . Max in Single Turn . | . . . . . . Machines Sabotaged . | . . . . . . Garrisons Compromised . | . . . . . . Overloaded Fab Kills . | . . . . . . Fab Network Shutdowns . | . . . . . . Hacking | -11 -10 -10 -9 -8 -7 --------- Run | Scr Mat Min Mat Mat Fac Machines Accessed 12 | . 3 1 4 2 2 Terminals 12 | . 3 1 4 2 2 Fabricators . | . . . . . . Repair Stations . | . . . . . . Recycling Units . | . . . . . . Scanalyzers . | . . . . . . Garrison Access . | . . . . . . Total Hacks 19 | . 5 1 6 2 5 Successful 10 | . 3 . 3 1 3 Failed 9 | . 2 1 3 1 2 Catastrophic 3 | . 1 1 1 . . Database Lockouts . | . . . . . . Manual 10 | . 1 1 3 2 3 Terminals 19 | . 5 1 6 2 5 Fabricators . | . . . . . . Repair Stations . | . . . . . . Recycling Units . | . . . . . . Scanalyzers . | . . . . . . Garrison Access . | . . . . . . Terminal Hacks 10 | . 3 . 3 1 3 Level Access Points 3 | . . . 1 1 1 Branch Access Points 2 | . 1 . 1 . . Emergency Access Points 2 | . . . . . 2 Maintenance Status 1 | . 1 . . . . Recall Investigation 1 | . 1 . . . . Recall Reinforcements 1 | . . . 1 . . Fabricator Hacks . | . . . . . . Repair Station Hacks . | . . . . . . Recycling Unit Hacks . | . . . . . . Scanalyzer . | . . . . . . Garrison Access Hacks . | . . . . . . Unauthorized Hacks . | . . . . . . Terminals . | . . . . . . Fabricators . | . . . . . . Repair Stations . | . . . . . . Recycling Units . | . . . . . . Scanalyzers . | . . . . . . Garrison Access . | . . . . . . Data Cores Recovered . | . . . . . . Used . | . . . . . . Hacking Detections 6 | . 3 1 1 1 . Full Trace Events . | . . . . . . Feedback Events . | . . . . . . Feedback Blocked . | . . . . . . Robot Schematics Acquired . | . . . . . . Robots Built . | . . . . . . Matter . | . . . . . . Time . | . . . . . . Total Robot Build Rating . | . . . . . . Part Schematics Acquired . | . . . . . . Parts Built . | . . . . . . Matter . | . . . . . . Time . | . . . . . . Total Part Build Rating . | . . . . . . Parts Repaired . | . . . . . . Time . | . . . . . . Parts Recycled . | . . . . . . Recycled Matter . | . . . . . . Retrieved Matter . | . . . . . . Retrieved Components . | . . . . . . Parts Scanalyzed . | . . . . . . Part Schematics Acquired . | . . . . . . Parts Damaged . | . . . . . . Bothacking | -11 -10 -10 -9 -8 -7 ------------ Run | Scr Mat Min Mat Mat Fac Used RIF Installer . | . . . . . . Robots Hacked . | . . . . . . Non-combat . | . . . . . . Combat . | . . . . . . Robot Hacks Applied . | . . . . . . Relay Couplers Released . | . . . . . . Robots Rewired . | . . . . . . Allies Hacked . | . . . . . . Hacks Repelled . | . . . . . . Allies | -11 -10 -10 -9 -8 -7 -------- Run | Scr Mat Min Mat Mat Fac Total Allies . | . . . . . . Largest Group . | . . . . . . Highest-Rated Group . | . . . . . . Highest-Rated Ally . | . . . . . . Total Orders . | . . . . . . Ally Attacks . | . . . . . . Total Damage . | . . . . . . Kills . | . . . . . . Allies Corrupted . | . . . . . . Allies Melted . | . . . . . . Intel | -11 -10 -10 -9 -8 -7 ------- Run | Scr Mat Min Mat Mat Fac Robot Analysis Total . | . . . . . . Derelict Logs Recovered 1 | . . 1 . . . Drone Launches . | . . . . . . Drone Recoveries . | . . . . . . Exploration | -11 -10 -10 -9 -8 -7 ------------- Run | Scr Mat Min Mat Mat Fac Turns Passed 2958 | 46 551 679 314 264 1104 Spaces Moved 2253 | 34 386 473 240 167 953 Core 267 | 4 . . . . 263 Treads 33 | . . . . . 33 Legs 1953 | 30 386 473 240 167 657 Wheels . | . . . . . . Hover . | . . . . . . Flight . | . . . . . . Fastest Speed 50 | 50 120 120 120 120 50 Average Speed 112 | 111 120 120 120 120 101 Slowest Speed 161 | 120 120 120 120 120 161 Overloaded Moves . | . . . . . . Propulsion Burnouts . | . . . . . . Robots Hopped . | . . . . . . Cave-ins Triggered 1 | . . 1 . . . Exploration Rate (%) 36 | 3 62 97 26 14 16 Regions Visited 5 Branch Regions 1 Pre-discovered Areas . | . . . . . . Known Exits Taken 4 | . 1 1 1 1 . Unknown Exits Taken 1 | 1 . . . . . Scrap Searched 1 | . . 1 . . . Spaces Dug 2 | . . 2 . . . Terrain Destroyed 12 | . 10 2 . . . Melee . | . . . . . . Projectile 2 | . . 2 . . . AOE 10 | . 10 . . . . Actions | -11 -10 -10 -9 -8 -7 --------- Run | Scr Mat Min Mat Mat Fac Total 2564 | 39 449 567 258 196 1055 Wait 173 | . 33 73 12 6 49 Move 2248 | 33 385 472 239 166 953 Hop . | . . . . . . Pick Up 14 | . 8 1 . 3 2 Fast Attach 17 | 6 1 . 3 3 4 Attach 11 | . . 4 1 1 5 Detach 1 | . . . . . 1 Swap 6 | . 3 1 . 1 1 Drop 7 | . 5 . . . 2 Fire 69 | . 14 9 3 16 27 Melee . | . . . . . . Ram 7 | . . . . . 7 Kick 7 | . . 7 . . . Crush . | . . . . . . Escape Stasis 4 | . . . . . 4 Rewire . | . . . . . . Trap . | . . . . . . Miscellaneous . | . . . . . . Route ------- -11/Scrapyard -10/Materials (discovered 3 exits: *Mat / *Min x2) -10/Mines (discovered 2 exits: *Mat x2) -9/Materials (discovered 5 exits: *Mat x3 / *Min x2) -8/Materials (discovered 3 exits: *Fac x3) -7/Factory (discovered 4 exits: Fac x4) History --------- Turn | Location | Event 5 | -11/Scrapyard | Discovered new exit (range 16) 47 | -11/Scrapyard | Entered Materials 308 | -10/Materials | Build established: Mutant 397 | -10/Materials | Discovered new exit (range 10) 443 | -10/Materials | Identified exit to Mines 598 | -10/Materials | Entered Mines 611 | -10/Mines | Met a Derelict bent on vengeance 735 | -10/Mines | Crushed by falling debris 735 | -10/Mines | Core integrity fell below 50% 777 | -10/Mines | Discovered new exit (range 11) 790 | -10/Mines | Identified exit to Materials 939 | -10/Mines | Discovered exit to Materials (range 5) 1058 | -10/Mines | Learned Materials terminal intel 1207 | -10/Mines | Lost 3 parts (1p1n1w) 1277 | -10/Mines | Entered Materials 1277 | -9/Materials | Evolved 2 slots: Propulsion x2 1278 | -9/Materials | Loaded intel: 12 terminal locations 1283 | -9/Materials | Identified exit to Mines 1561 | -9/Materials | Identified exit to Materials 1591 | -9/Materials | Entered another Materials area 1591 | -8/Materials | Evolved 2 slots: Utility x1, Weapon x1 1631 | -8/Materials | Identified exit to Factory 1855 | -8/Materials | Entered Factory 1855 | -7/Factory | Evolved 2 slots: Power x1, Utility x1 1935 | -7/Factory | Identified exit to Factory 2107 | -7/Factory | Build established: Scavenger-Gunner 2754 | -7/Factory | Lost 9 parts (2p4n3w) 2786 | -7/Factory | Released all parts (8) 2843 | -7/Factory | Core integrity fell below 50% 2899 | -7/Factory | Core integrity fell below 20% 2959 | -7/Factory | Destroyed by S-27 Virus with Autogun Last Messages --------------- 02882_ Slammed into K-01 Serf. 02882_ K-01 Serf sends out distress signal. 02883_ Slammed into K-01 Serf. 02896_ Triggered Proton Bomb Trap. 02896_ A bubble of electromagnetic force engulfs the area. 02896_ Proton Bomb Trap short circuited. 02896_ A bubble of electromagnetic force engulfs the area. 02896_ Proton Bomb Trap short circuited. 02896_ A bubble of electromagnetic force engulfs the area. 02916_ CAL7OZ:OU3OW4GQLYEA92%JYN&8YXYZR#ZAAT 02931_ 9ZGFJFKK>30,LYQA1IZYJBN36XJYH 02936_ Slammed into K-01 Serf. 02955_ W-25 Informer sends out distress signal. 02956_ Connecting with Terminal... >>Access(Emergency) Found 1 emergency access door: (108,124) Map updated. 02958_ Slammed into K-01 Serf. 02958_ K-01 Serf knocked back. Map ----- +----------------------------------------------------+ | ?????????????????????????????????????????????????? | | ?????????????????????????????????????????????????? | | ?????????????????????????????????????????????????? | | ?????????????????????????????????????????????????? | | ?????????????????????????????????????????????????? | | ?????????????????????????????????????????????????? | | ?????????????????????????????????????????????????? | | ?????????????????????????????????????????????????? | | ?????????????????????????????????????????????????? | | ?????????????????????????????????????????????????? | | ?????????????????????????????????????????????????? | | ?????????????????????????????????????????????????? | | ?????????????????????????????????????????????????? | | ?????????????????????????????????????????????????? | | ?????????????????????????????????????????????????? | | ?????????????????????????????????????????????????? | | ?????????????????????????????????????????????????? | | ?????????????????????????????????????????????????? | | ?????#######?????????????????????????????????????? | | ?????# #?????????????????????????????????????? | | ?????# ""#?????????????????????????????????????? | | ?????# ""#?????????????????????????????????????? | | ?????# G#######???????????????????????????????? | | ##### ""# #?#####?????????????????????????? | | + ""# ### ######### ????????? | | ### # # pp T s@k s rswk u ????????? | | ?????# """ # ### ###########???????????????? | | ?????# """ # #?#####?????????????????????????? | | ?????# """ ### ###?????????????????????????+?????? | | ?????# #?# #?????????????????????????????????? | | ?????# #?# #?????????????????????????????????? | | ?????####+##?# #?????????????????????????????????? | | ???????# ### #?????????????????????????????????? | | ???????# #?????????????????????????????????? | | ???????# #####?????????????????????????????????? | | ???????## ##?????????????????????????????????????? | | ????????# #??????????????????????????????????????? | | ??????### ###????????????????????????????????????? | | ???#??# #????????????????????????????????????? | | ???# ## #????????????????????????????????????? | | ???# +????????????????????????????????????? | | ???# ## #????????????????????????????????????? | | ???#??# #????????????????????????????????????? | | ??????## ##????????????????????????????????????? | | ???????# #?????????????????????????????????????? | | ???????# #?????????????????????????????????????? | | ???????# #??????##?????????????????????????????? | | ???????# #???? ?????????????????????????????? | | ???????# #??""""""""" ?????????????????????????? | | ???????# # ???????????????????????????? | +----------------------------------------------------+ Best States ------------- Heat Dissipation 48 Energy Generation 19 Energy Capacity 390 Matter Stores 300 Matter Capacity 300 Sight Range 16 Robot Scan Range 10 Terrain Scan Density 10 Evasion (%) 50 Targeting Accuracy 6 Recoil Reduction 2 Offensive Hacking 10 Item Schematics ----------------- None Robot Schematics ------------------ None Fabricated ------------ Nothing Alien Tech Used ----------------- None Achievements -------------- None Challenges ------------ None Game ------ Seed NeutronBeamLauncher Manual? 0 Play Time 00:29:36 Cumulative 21.9 hours Start 2020.05.18 @ 18:51:39 End 2020.05.18 @ 19:18:17 Sessions 1 Manual Loads 0 Difficulty Rogue Special Mode None Game No. 48 Rogue 48 Adventurer 0 Explorer 0 Win Type - Total 0 Types 0/0/0/0/0/0/0 Lore% 19 Gallery% 28 Achievement% 23 Wizard Run 0 Options --------- ASCII 0 Keyboard 1 Movement Numpad Keybinds 0 Fullscreen 2 Font 18/Terminus Map View 76x50 Tactical HUD 1 Map Filters NONE Filters NONE Steam 1 RUN: 4038a866-af4e-49a4-b71a-2e0334b5298f